bitfinex/quotes_SOLUSD_20240620
["timestamp","ask_amount","ask_price","bid_price","bid_amount"]
[1718910378399,30.0,134.41,134.39,9.31]
[1718910378988,30.0,134.41,134.4,9.31]
[1718910380506,15.1754,134.43,134.37,7.4418]
[1718910380702,15.1754,134.43,134.41,9.31]
[1718910380902,30.0,134.42,134.41,9.31]
[1718910381098,30.0,134.42,134.37,7.4418]
[1718910381305,30.0,134.42,134.41,9.31]
[1718910382290,30.34,134.42,134.33,24.4347]
[1718910382486,15.557,134.41,134.34,20.0]
[1718910382700,15.557,134.41,134.32,7.4445]
[1718910382701,9.65,134.4,134.32,7.4445]
[1718910382911,9.65,134.4,134.33,20.0]
[1718910383211,30.0,134.38,134.35,9.31]
[1718910383412,30.0,134.38,134.33,27.4443]
[1718910383413,30.0,134.38,134.36,9.31]
[1718910384514,29.0,134.38,134.36,9.31]
[1718910385347,29.0,134.38,134.33,20.0]
[1718910385612,0.17,134.37,134.35,9.31]
[1718910385816,30.34,134.37,134.35,9.31]
[1718910386912,30.34,134.37,134.34,9.31]
[1718910387624,0.17,134.36,134.34,9.31]
[1718910387912,30.17,134.36,134.34,9.31]
[1718910388313,30.0,134.36,134.34,9.31]
[1718910388516,30.0,134.36,134.29,22.5696]
[1718910388698,30.0,134.36,134.33,9.31]
[1718910388903,36.6377,134.36,134.33,9.31]
[1718910389604,36.6377,134.36,134.3,7.446]
[1718910389802,36.6377,134.36,134.33,9.31]
[1718910390015,0.17,134.35,134.33,9.31]
[1718910390209,30.51,134.35,134.26,461.9721]
[1718910390405,30.51,134.35,134.29,7.4461]
[1718910391125,30.51,134.35,134.32,9.31]
[1718910391315,30.51,134.35,134.33,9.31]
[1718910392521,30.51,134.35,134.27,20.0]
[1718910392522,30.0,134.35,134.34,9.31]
[1718910394106,15.7718,134.37,134.34,9.31]
[1718910394304,15.7718,134.37,134.36,9.31]
[1718910394508,45.7718,134.37,134.36,9.31]
[1718910397699,45.7718,134.37,134.35,9.31]
[1718910399827,30.0,134.37,134.31,15.2262]
[1718910400031,30.0,134.37,134.36,9.31]
[1718910400229,16.1225,134.4,134.36,9.31]
[1718910400527,6.4911,134.42,134.36,7.4426]
[1718910400834,6.4911,134.42,134.4,9.31]
[1718910401002,6.4911,134.42,134.41,9.31]
[1718910402331,6.4911,134.42,134.4,9.31]
[1718910403029,6.4911,134.42,134.38,9.31]
[1718910403030,0.17,134.41,134.38,9.31]
[1718910403337,0.51,134.41,134.37,9.31]
[1718910404027,0.51,134.41,134.38,9.31]
[1718910405632,6.4911,134.42,134.4,9.31]
[1718910406339,22.7921103,134.46,134.41,9.31]
[1718910406635,22.7921103,134.46,134.4,9.31]
[1718910406636,0.8304103,134.46,134.4,9.31]
[1718910406941,0.8304103,134.46,134.45,9.31]
[1718910407807,0.8304103,134.46,134.42,7.439]
[1718910408140,0.8304103,134.46,134.45,9.31]
[1718910409023,0.8304103,134.46,134.41,7.4396]
[1718910409231,0.8304103,134.46,134.45,9.31]
[1718910409411,0.8304103,134.46,134.44,9.31]
[1718910412434,0.8304103,134.46,134.41,7.4398]
[1718910412628,0.8304103,134.46,134.44,9.31]
[1718910413236,0.8304103,134.46,134.43,9.31]
[1718910416238,0.51,134.45,134.39,7.4408]
[1718910416436,0.51,134.45,134.42,9.31]
[1718910417233,0.51,134.45,134.43,9.31]
[1718910417446,0.34,134.45,134.43,9.31]
[1718910419230,0.34,134.45,134.42,9.31]
[1718910420221,0.8304103,134.46,134.44,9.31]
[1718910420832,0.8304103,134.46,134.45,9.31]
[1718910423739,0.8304103,134.46,134.44,9.31]
[1718910425336,0.17,134.45,134.4,20.0]
[1718910425644,0.51,134.45,134.41,9.31]
[1718910427128,0.51,134.45,134.38,20.0]
[1718910427129,45.8304103,134.46,134.42,9.31]
[1718910427432,0.51,134.45,134.42,9.31]
[1718910428243,0.51,134.45,134.41,9.31]
[1718910428836,0.51,134.45,134.39,7.4405]
[1718910429045,0.51,134.45,134.41,9.31]
[1718910429843,0.8304103,134.46,134.43,9.31]
[1718910430041,0.8304103,134.46,134.44,9.31]
[1718910431752,0.8304103,134.46,134.45,9.31]
[1718910434848,0.8304103,134.46,134.45,9.31]
[1718910437246,0.8304103,134.46,134.45,16.7477]
[1718910437430,0.8304103,134.46,134.45,36.7477]
[1718910440535,0.8304103,134.46,134.45,46.0577]
[1718910440745,15.9618,134.54,134.45,88.93]
[1718910440945,15.9618,134.54,134.52,9.31]
[1718910441446,15.9618,134.54,134.51,9.31]
[1718910442651,6.3931,134.56,134.52,9.31]
[1718910442853,0.17,134.55,134.52,9.31]
[1718910443051,0.34,134.55,134.52,9.31]
[1718910443835,0.34,134.55,134.47,37.24]
[1718910444035,45.34,134.55,134.48,20.0]
[1718910444284,9.48,134.54,134.45,7.4376]
[1718910444457,45.17,134.53,134.48,9.31]
[1718910444651,6.1326,134.51,134.38,259.3]
[1718910444837,6.1326,134.51,134.48,9.31]
[1718910446352,6.1326,134.51,134.49,9.31]
[1718910448039,0.34,134.53,134.5,9.31]
[1718910448354,0.17,134.53,134.51,9.31]
[1718910448560,6.7833,134.54,134.51,9.31]
[1718910448738,0.34,134.53,134.5,9.31]
[1718910449140,0.34,134.53,134.42,22.7635]
[1718910449141,9.48,134.52,134.42,22.7635]
[1718910449340,45.17,134.51,134.46,9.31]
[1718910449557,0.17,134.5,134.46,9.31]
[1718910449742,0.34,134.5,134.46,9.31]
[1718910449948,0.34,134.5,134.43,20.0]
[1718910450256,0.34,134.5,134.43,27.4387]
[1718910450459,0.34,134.5,134.47,9.31]
[1718910451237,0.17,134.5,134.48,9.31]
[1718910451441,15.9233,134.54,134.49,9.31]
[1718910451756,0.17,134.52,134.49,9.31]
[1718910451941,0.34,134.52,134.49,9.31]
[1718910452863,45.17,134.53,134.5,9.31]
[1718910452864,0.17,134.53,134.5,9.31]
[1718910453043,0.34,134.53,134.5,9.31]
[1718910453242,6.6133,134.54,134.51,9.31]
[1718910454464,16.0899,134.55,134.52,9.31]
[1718910454834,16.0899,134.55,134.53,9.31]
[1718910455465,16.0899,134.55,134.49,7.4354]
[1718910455769,6.45,134.57,134.49,7.4354]
[1718910455770,6.45,134.57,134.53,9.31]
[1718910458560,0.34,134.56,134.53,9.31]
[1718910461283,0.34,134.56,134.47,52.3537]
[1718910461576,9.31,134.54,134.48,9.31]
[1718910466463,30.0,134.5,134.49,9.31]
[1718910467260,30.51,134.5,134.47,9.31]
[1718910468280,30.0,134.5,134.48,9.31]
[1718910469990,6.0807,134.51,134.48,9.31]
[1718910473267,6.0807,134.51,134.42,22.38]
[1718910473268,6.0807,134.51,134.42,7.4391]
[1718910473468,45.34,134.5,134.46,9.31]
[1718910473662,0.17,134.49,134.46,9.31]
[1718910473862,30.17,134.49,134.46,9.31]
[1718910474075,39.48,134.49,134.43,20.0]
[1718910474381,25.6181,134.47,134.42,9.31]
[1718910474695,60.8623,134.46,134.41,9.31]
[1718910474866,0.17,134.45,134.41,9.31]
[1718910475065,0.34,134.45,134.41,9.31]
[1718910475466,0.17,134.44,134.38,7.4413]
[1718910475668,6.3823,134.46,134.39,7.4409]
[1718910477392,30.0,134.45,134.37,27.95]
[1718910477691,0.17,134.44,134.38,20.0]
[1718910478665,0.17,134.44,134.38,27.4413]
[1718910479890,30.17,134.44,134.38,27.4413]
[1718910482787,30.17,134.44,134.38,20.0]
[1718910483082,30.17,134.44,134.37,35.3921]
[1718910483083,0.17,134.43,134.37,35.3921]
[1718910483681,0.17,134.43,134.36,7.4424]
[1718910483884,0.17,134.43,134.33,38.0549]
[1718910483885,75.34,134.43,134.35,35.3931]
[1718910484101,16.0006,134.42,134.36,20.0]
[1718910484385,16.1706,134.42,134.36,20.0]
[1718910484586,6.2724,134.41,134.32,27.95]
[1718910484791,30.17,134.4,134.33,27.444]
[1718910484994,30.34,134.4,134.33,27.444]
[1718910485370,30.34,134.4,134.34,7.4437]
[1718910485873,30.34,134.4,134.33,27.444]
[1718910486486,30.34,134.4,134.34,7.4437]
[1718910487384,30.34,134.4,134.33,27.444]
[1718910488168,0.17,134.39,134.33,27.444]
[1718910488366,30.17,134.39,134.33,27.444]
[1718910489393,0.17,134.38,134.33,20.0]
[1718910489594,0.34,134.38,134.33,20.0]
[1718910491875,30.34,134.38,134.33,20.0]
[1718910492896,16.3279,134.37,134.29,27.95]
[1718910493077,16.4979,134.37,134.3,27.4458]
[1718910493280,6.0225,134.35,134.3,20.0]
[1718910493483,0.17,134.34,134.3,20.0]
[1718910493689,6.0225,134.35,134.3,27.4459]
[1718910493994,6.0225,134.35,134.3,20.0]
[1718910493995,0.17,134.34,134.3,20.0]
[1718910494193,0.34,134.34,134.3,20.0]
[1718910494694,6.0225,134.35,134.31,7.445]
[1718910495096,6.0225,134.35,134.32,7.4448]
[1718910495309,6.0225,134.35,134.28,20.0]
[1718910495473,6.0225,134.35,134.28,47.95]
[1718910495673,6.0225,134.35,134.3,7.4456]
[1718910495894,6.0225,134.35,134.31,20.0]
[1718910497095,6.0225,134.35,134.31,27.4453]
[1718910497294,16.3279,134.37,134.32,7.4447]
[1718910497596,16.3279,134.37,134.35,9.33]
[1718910497802,30.0,134.36,134.35,9.33]
[1718910498288,16.3279,134.37,134.35,9.33]
[1718910499394,0.17,134.36,134.33,9.33]
[1718910499698,0.51,134.36,134.33,9.33]
[1718910501271,0.51,134.36,134.34,9.33]
[1718910501698,16.3279,134.37,134.31,20.0]
[1718910501908,16.3279,134.37,134.34,9.33]
[1718910502402,0.34,134.36,134.33,9.33]
[1718910502609,0.34,134.36,134.29,7.4463]
[1718910502903,0.34,134.36,134.33,9.33]
[1718910503915,0.34,134.36,134.3,20.0]
[1718910504083,0.34,134.36,134.33,9.33]
[1718910504718,0.34,134.36,134.34,9.33]
[1718910504878,16.3279,134.37,134.34,9.33]
[1718910505078,16.3279,134.37,134.3,20.0]
[1718910505079,6.3814,134.38,134.36,9.33]
[1718910505301,6.3814,134.38,134.37,9.33]
[1718910505500,6.3814,134.38,134.31,7.4449]
[1718910505501,36.3814,134.38,134.31,7.4449]
[1718910505797,36.3814,134.38,134.3,20.0]
[1718910505798,36.3814,134.38,134.36,9.33]
[1718910507100,30.0,134.38,134.37,9.33]
[1718910507287,6.5285,134.42,134.37,9.33]
[1718910507601,15.8951,134.43,134.33,59.7]
[1718910507779,6.3587,134.45,134.42,9.33]
[1718910508380,30.0,134.43,134.42,9.33]
[1718910509507,30.0,134.43,134.39,7.4406]
[1718910509798,30.0,134.43,134.4,27.4402]
[1718910510105,16.4185,134.46,134.4,27.4402]
[1718910510782,16.4185,134.46,134.41,7.4397]
[1718910510983,1.72379328,134.49,134.42,27.439]
[1718910511309,1.72379328,134.49,134.43,7.4388]
[1718910511504,1.72379328,134.49,134.44,20.0]
[1718910511684,1.72379328,134.49,134.42,27.4391]
[1718910512612,1.72379328,134.49,134.42,20.0]
[1718910512923,1.72379328,134.49,134.43,7.4385]
[1718910513085,1.72379328,134.49,134.44,20.0]
[1718910513285,1.72379328,134.49,134.42,27.4391]
[1718910513515,1.72379328,134.49,134.42,20.0]
[1718910513889,0.17,134.48,134.4,20.0]
[1718910514088,0.51,134.48,134.4,27.4404]
[1718910514292,0.51,134.48,134.41,7.4397]
[1718910514591,0.51,134.48,134.42,20.0]
[1718910514897,0.51,134.48,134.4,20.0]
[1718910515297,0.51,134.48,134.37,42.38]
[1718910515501,0.17,134.48,134.41,7.4398]
[1718910515703,0.17,134.49,134.41,7.4398]
[1718910516105,0.17,134.49,134.39,50.32]
[1718910516306,0.17,134.49,134.43,7.4384]
[1718910516504,0.17,134.49,134.42,7.4392]
[1718910516712,0.17,134.49,134.41,7.4397]
[1718910516896,0.34,134.49,134.42,20.0]
[1718910517400,0.34,134.49,134.41,20.0]
[1718910517700,0.34,134.49,134.41,27.4398]
[1718910518210,0.34,134.49,134.41,20.0]
[1718910518409,45.34,134.49,134.4,20.0]
[1718910518709,0.17,134.48,134.4,20.0]
[1718910519423,22.1222,134.47,134.4,20.0]
[1718910519599,0.17,134.46,134.39,20.0]
[1718910519917,45.51,134.46,134.39,27.4407]
[1718910520402,45.51,134.46,134.39,20.0]
[1718910520604,0.51,134.46,134.39,27.94]
[1718910520808,0.34,134.46,134.41,7.4398]
[1718910521113,0.34,134.46,134.4,20.0]
[1718910522296,0.34,134.46,134.4,27.4404]
[1718910522497,0.34,134.46,134.4,20.0]
[1718910522697,45.34,134.46,134.4,20.0]
[1718910522899,0.34,134.46,134.4,20.0]
[1718910523505,22.1222,134.47,134.42,7.439]
[1718910523720,22.1222,134.47,134.43,7.4387]
[1718910523918,22.1222,134.47,134.4,20.0]
[1718910524421,22.1222,134.47,134.42,7.439]
[1718910524595,22.1222,134.47,134.43,27.4387]
[1718910524800,22.1222,134.47,134.43,7.4387]
[1718910525203,22.1222,134.47,134.42,7.439]
[1718910525511,22.1222,134.47,134.43,20.0]
[1718910526305,22.1222,134.47,134.43,27.4387]
[1718910527006,22.1222,134.47,134.43,20.0]
[1718910528018,22.1222,134.47,134.43,27.4387]
[1718910528214,22.1222,134.47,134.43,20.0]
[1718910531730,0.17,134.46,134.42,20.0]
[1718910532025,45.51,134.46,134.4,20.0]
[1718910532221,45.51,134.46,134.42,9.31]
[1718910534230,30.0,134.44,134.42,9.31]
[1718910535413,30.0,134.44,134.41,9.31]
[1718910537446,45.51,134.46,134.42,9.31]
[1718910540846,45.51,134.46,134.36,20.0]
[1718910540847,45.51,134.46,134.43,9.31]
[1718910541129,0.51,134.46,134.44,9.31]
[1718910541327,30.0,134.45,134.44,9.31]
[1718910542415,22.1222,134.47,134.44,9.31]
[1718910542937,22.1222,134.47,134.46,9.31]
[1718910543134,6.0167,134.47,134.46,9.31]
[1718910543936,21.9239,134.5,134.46,9.31]
[1718910544113,21.9239,134.5,134.47,9.31]
[1718910544309,30.0,134.48,134.47,9.31]
[1718910544835,30.0,134.48,134.45,9.31]
[1718910545216,0.17,134.49,134.45,9.31]
[1718910545412,0.51,134.49,134.45,9.31]
[1718910545716,54.82,134.49,134.4,61.0599]
[1718910545920,44.75,134.48,134.36,20.0]
[1718910546224,25.9051,134.41,134.36,9.31]
[1718910546409,0.17,134.4,134.31,7.4452]
[1718910546616,9.31,134.39,134.3,15.2255]
[1718910546838,0.34,134.38,134.3,15.2255]
[1718910547020,0.17,134.37,134.34,9.31]
[1718910551011,0.8304103,134.59,134.53,20.0]
[1718910551243,0.8304103,134.59,134.51,7.4343]
[1718910551411,0.8304103,134.59,134.52,20.0]
[1718910551612,0.8304103,134.59,134.52,47.92]
[1718910551815,0.8304103,134.59,134.54,7.4325]
[1718910552122,0.8304103,134.59,134.55,20.0]
[1718910552725,0.8304103,134.59,134.55,27.432]
[1718910553525,0.8304103,134.59,134.56,7.4316]
[1718910554142,0.8304103,134.59,134.55,27.4319]
[1718910554437,0.8304103,134.59,134.55,20.0]
[1718910554717,0.8304103,134.59,134.52,20.0]
[1718910555044,0.8304103,134.59,134.5,20.0]
[1718910555339,0.8304103,134.59,134.57,7.4307]
[1718910555514,0.8304103,134.59,134.5,20.0]
[1718910555914,0.8304103,134.59,134.56,7.4312]
[1718910556128,0.8304103,134.59,134.57,7.4306]
[1718910558042,0.8304103,134.59,134.58,7.4305]
[1718910559027,0.8304103,134.59,134.57,7.4309]
[1718910559435,0.8304103,134.59,134.58,7.4305]
[1718910560436,0.8304103,134.59,134.57,7.4309]
[1718910560641,0.8304103,134.59,134.58,7.4305]
[1718910561347,0.8304103,134.59,134.58,27.4305]
[1718910561818,0.8304103,134.59,134.58,20.0]
[1718910562024,0.8304103,134.59,134.57,20.0]
[1718910562524,0.8304103,134.59,134.58,7.4305]
[1718910562726,0.8304103,134.59,134.58,27.4305]
[1718910563530,0.8304103,134.59,134.58,20.0]
[1718910565348,0.8304103,134.59,134.57,7.4308]
[1718910565642,0.8304103,134.59,134.58,20.0]
[1718910566444,0.8304103,134.59,134.58,27.4305]
[1718910568151,0.8304103,134.59,134.54,7.4325]
[1718910568346,0.8304103,134.59,134.5,16.6342]
[1718910568347,0.17,134.58,134.5,16.6342]
[1718910568525,0.51,134.58,134.52,7.4337]
[1718910568730,0.51,134.58,134.5,16.6342]
[1718910568731,36.4994,134.57,134.53,20.0]
[1718910568947,36.4994,134.57,134.51,7.4342]
[1718910569139,36.4994,134.57,134.52,7.4338]
[1718910570145,36.4994,134.57,134.51,7.4341]
[1718910570347,36.4994,134.57,134.52,20.0]
[1718910571436,36.4994,134.57,134.49,7.4353]
[1718910571634,45.34,134.56,134.5,27.4345]
[1718910571842,0.34,134.56,134.51,7.4339]
[1718910572045,30.0,134.56,134.52,7.4337]
[1718910572349,30.0,134.56,134.45,39.1427]
[1718910572553,0.34,134.55,134.5,7.4347]
[1718910573132,30.34,134.55,134.5,7.4347]
[1718910574051,30.34,134.55,134.49,7.4352]
[1718910574345,30.34,134.55,134.5,20.0]
[1718910575242,30.34,134.55,134.5,27.4347]
[1718910576150,30.34,134.55,134.5,20.0]
[1718910576337,30.34,134.55,134.48,35.3358]
[1718910576532,30.34,134.55,134.49,20.0]
[1718910576834,45.0,134.54,134.47,7.4364]
[1718910577035,0.34,134.53,134.48,20.0]
[1718910577943,30.34,134.53,134.48,20.0]
[1718910579556,45.6326,134.53,134.45,35.3374]
[1718910579746,6.1645,134.52,134.46,7.4371]
[1718910579953,30.0,134.51,134.45,35.3374]
[1718910580266,30.17,134.51,134.46,20.0]
[1718910580442,30.17,134.51,134.46,27.4371]
[1718910582062,30.17,134.51,134.46,27.4368]
[1718910584762,30.17,134.51,134.46,20.0]
[1718910585059,0.17,134.5,134.46,20.0]
[1718910585367,30.34,134.5,134.46,20.0]
[1718910586252,30.34,134.5,134.46,27.4368]
[1718910586893,30.0,134.5,134.46,20.0]
[1718910587165,30.0,134.5,134.43,20.0]
[1718910587854,30.0,134.5,134.47,7.4363]
[1718910589069,30.0,134.5,134.46,7.4368]
[1718910589454,30.0,134.5,134.47,7.4364]
[1718910589665,30.0,134.5,134.46,7.437]
[1718910590163,30.0,134.5,134.46,7.4368]
[1718910591575,30.0,134.5,134.45,7.4374]
[1718910591759,30.0,134.5,134.46,20.0]
[1718910592356,30.0,134.5,134.46,27.4371]
[1718910593972,30.0,134.51,134.46,27.4371]
[1718910597469,30.0,134.51,134.48,9.31]
[1718910599068,30.0,134.51,134.49,9.31]
[1718910599268,30.0,134.51,134.5,9.31]
[1718910599461,6.1645,134.52,134.5,9.31]
[1718910599657,6.1645,134.52,134.49,7.4354]
[1718910599869,6.1645,134.52,134.48,7.4358]
[1718910600064,15.2926,134.53,134.51,9.31]
[1718910600370,6.167,134.55,134.52,9.31]
[1718910600673,30.0,134.53,134.5,9.31]
[1718910601779,30.0,134.53,134.51,9.31]
[1718910601960,6.167,134.55,134.51,9.31]
[1718910602367,6.167,134.55,134.46,20.0]
[1718910602560,6.167,134.55,134.47,9.31]
[1718910602561,39.31,134.52,134.47,9.31]
[1718910602862,16.1942,134.51,134.47,9.31]
[1718910603068,16.1942,134.51,134.42,7.4392]
[1718910603069,6.5146,134.49,134.42,7.4392]
[1718910603274,6.5146,134.49,134.4,37.24]
[1718910603486,15.8246,134.49,134.44,9.31]
[1718910603774,6.5146,134.49,134.4,59.62]
[1718910603948,6.5146,134.49,134.46,9.31]
[1718910604148,6.5146,134.49,134.43,7.4386]
[1718910604366,6.5146,134.49,134.45,9.31]
[1718910604561,6.5146,134.49,134.42,7.4391]
[1718910604784,6.5146,134.49,134.45,9.31]
[1718910604965,0.34,134.48,134.45,9.31]
[1718910605377,0.34,134.48,134.46,9.31]
[1718910605757,6.5146,134.49,134.47,9.31]
[1718910607072,6.5146,134.49,134.48,9.31]
[1718910607271,36.5146,134.49,134.48,9.31]
[1718910607457,6.5146,134.49,134.48,9.31]
[1718910607780,6.1726,134.52,134.48,16.746]
[1718910607976,15.6938,134.54,134.51,9.31]
[1718910608179,6.1726,134.56,134.53,9.31]
[1718910608373,6.1726,134.56,134.54,9.31]
[1718910608579,6.1726,134.56,134.53,9.31]
[1718910609080,6.1726,134.56,134.52,9.31]
[1718910609276,15.4826,134.56,134.51,9.31]
[1718910609581,6.1726,134.56,134.48,27.4357]
[1718910609765,0.34,134.55,134.48,20.0]
[1718910610172,30.34,134.55,134.48,20.0]
[1718910610362,30.0,134.55,134.48,20.0]
[1718910610760,30.0,134.55,134.5,7.4344]
[1718910611079,30.0,134.55,134.49,7.4353]
[1718910611284,30.0,134.55,134.5,20.0]
[1718910611593,6.1726,134.56,134.5,27.4348]
[1718910612086,15.6938,134.57,134.54,7.4326]
[1718910612258,7.2584103,134.59,134.55,7.4321]
[1718910612459,7.2584103,134.59,134.54,7.4324]
[1718910612656,7.2584103,134.59,134.55,20.0]
[1718910613666,7.2584103,134.59,134.54,7.4324]
[1718910613877,7.2584103,134.59,134.55,20.0]
[1718910614382,7.2584103,134.59,134.55,27.4321]
[1718910614687,7.2584103,134.59,134.55,7.4321]
[1718910617772,7.2584103,134.59,134.53,20.0]
[1718910618281,7.2584103,134.59,134.54,7.4324]
[1718910618486,7.2584103,134.59,134.56,7.4316]
[1718910618694,7.2584103,134.59,134.55,7.4318]
[1718910618900,7.2584103,134.59,134.56,20.0]
[1718910620708,7.2584103,134.59,134.56,27.4315]
[1718910620909,7.2584103,134.59,134.56,20.0]
[1718910623481,7.2584103,134.59,134.53,20.0]
[1718910624283,7.2584103,134.59,134.53,27.4332]
[1718910624694,7.2584103,134.59,134.54,7.4327]
[1718910624889,7.2584103,134.59,134.52,27.91]
[1718910624890,7.2584103,134.59,134.55,20.0]
[1718910625592,7.2584103,134.59,134.55,7.4318]
[1718910625803,7.2584103,134.59,134.56,20.0]
[1718910626401,7.2584103,134.59,134.56,27.4314]
[1718910630305,7.2584103,134.59,134.56,20.0]
[1718910630602,7.2584103,134.59,134.53,20.0]
[1718910631488,7.2584103,134.59,134.55,9.3]
[1718910632587,7.2584103,134.59,134.58,9.3]
[1718910635402,7.2584103,134.59,134.56,7.4313]
[1718910636302,7.2584103,134.59,134.55,7.4319]
[1718910636500,7.2584103,134.59,134.56,20.0]
[1718910636894,0.8304103,134.59,134.56,20.0]
[1718910637204,0.8304103,134.59,134.57,7.431]
[1718910637612,0.8304103,134.59,134.56,27.4313]
[1718910637812,0.8304103,134.59,134.56,20.0]
[1718910638000,0.8304103,134.59,134.58,7.4305]
[1718910638186,0.8304103,134.59,134.58,27.4305]
[1718910639498,0.8304103,134.59,134.58,49.9505]
[1718910639702,0.8304103,134.59,134.58,95.2905]
[1718910640091,6.4234,134.69,134.63,7.4272]
[1718910640414,6.4234,134.69,134.58,87.86]
[1718910640415,6.4234,134.69,134.65,7.4263]
[1718910640611,6.4234,134.69,134.66,20.0]
[1718910640814,15.1344,134.7,134.66,20.0]
[1718910641899,6.3674,134.72,134.66,27.426]
[1718910642623,6.3674,134.72,134.66,20.0]
[1718910642808,6.3674,134.72,134.65,20.0]
[1718910643491,0.34,134.71,134.65,20.0]
[1718910644410,0.34,134.71,134.64,7.4267]
[1718910644595,0.34,134.71,134.65,27.4263]
[1718910644800,0.34,134.71,134.63,7.4274]
[1718910645112,0.34,134.71,134.66,20.0]
[1718910645113,0.17,134.7,134.66,20.0]
[1718910645717,0.17,134.7,134.64,20.0]
[1718910645890,0.17,134.7,134.64,27.427]
[1718910646215,6.3674,134.72,134.64,47.88]
[1718910646807,6.3674,134.72,134.65,7.4264]
[1718910647114,6.3674,134.72,134.66,20.0]
[1718910647507,0.34,134.71,134.66,20.0]
[1718910649218,0.17,134.71,134.65,20.0]
[1718910651811,45.34,134.71,134.65,20.0]
[1718910652021,15.707,134.69,134.62,20.0]
[1718910652407,0.17,134.68,134.61,20.0]
[1718910653217,0.17,134.68,134.62,7.4279]
[1718910653401,6.1847,134.67,134.63,20.0]
[1718910653796,0.17,134.66,134.63,20.0]
[1718910654013,0.17,134.66,134.62,20.0]
[1718910654505,0.17,134.66,134.61,20.0]
[1718910655121,0.17,134.66,134.62,7.4281]
[1718910655323,0.17,134.66,134.63,20.0]
[1718910657731,0.17,134.66,134.62,20.0]
[1718910657938,75.34,134.66,134.61,20.0]
[1718910658232,0.17,134.65,134.59,27.4297]
[1718910658412,0.17,134.65,134.6,7.4293]
[1718910658614,0.34,134.65,134.6,7.4293]
[1718910658822,30.0,134.65,134.6,7.4293]
[1718910659012,30.0,134.65,134.61,7.4286]
[1718910660020,30.0,134.65,134.59,27.4296]
[1718910660217,30.0,134.65,134.59,20.0]
[1718910660422,30.0,134.65,134.58,20.0]
[1718910660625,0.34,134.64,134.59,7.4296]
[1718910660817,30.34,134.64,134.6,20.0]
[1718910661116,30.17,134.64,134.6,20.0]
[1718910662425,30.17,134.64,134.59,20.0]
[1718910662426,15.3721,134.63,134.59,20.0]
[1718910662734,15.5421,134.63,134.58,20.0]
[1718910663114,15.5421,134.63,134.58,27.4305]
[1718910663323,15.3721,134.63,134.58,20.0]